bitfinex-derivatives/quotes_SOLF0:USTF0_20250206
["timestamp","ask_amount","ask_price","bid_price","bid_amount"]
[1738855585558,3.899e-05,194.56,194.52,0.0367398]
[1738855585754,3.899e-05,194.56,194.53,5.1385]
[1738855586358,1.2845496,194.55,194.52,0.0367398]
[1738855586557,1.2845496,194.54,194.52,0.0367398]
[1738855586762,1.2845496,194.53,194.52,0.0367398]
[1738855586958,1.2845496,194.55,194.52,0.0367398]
[1738855587154,3.3760496,194.54,194.42,7.02308662]
[1738855587355,1.28514805,194.53,194.42,7.02308662]
[1738855587561,1.28514805,194.52,194.42,7.02308662]
[1738855587764,2.0616,194.62,194.48,33.50447357]
[1738855588059,5.1374,194.59,194.48,33.50447357]
[1738855588260,0.03828315,194.57,194.53,0.03697541]
[1738855588455,2.0017,194.61,194.51,33.50447357]
[1738855588655,0.03565997,194.57,194.54,5.1384]
[1738855589053,0.03565997,194.57,194.53,0.03387797]
[1738855589264,5.997e-05,194.57,194.56,5.1379]
[1738855591362,2.0017,194.73,194.64,5.1358]
[1738855591556,3.21005888,194.72,194.6,33.50447357]
[1738855591759,1.28415888,194.71,194.57,33.50447357]
[1738855591966,1.28415888,194.7,194.54,33.50447357]
[1738855592158,33.50447357,194.68,194.51,33.50447357]
[1738855592360,33.50447357,194.68,194.44,6.4277]
[1738855592361,33.50447357,194.65,194.48,33.50447357]
[1738855592567,5.1372,194.59,194.58,0.03811511]
[1738855592765,1.28415888,194.59,194.48,33.50447357]
[1738855592967,0.03463252,194.61,194.52,33.50447357]
[1738855593166,2.0578,194.63,194.52,33.50447357]
[1738855593167,1.28447329,194.62,194.55,33.50447357]
[1738855593371,1.28447329,194.61,194.52,33.50447357]
[1738855593565,2.0578,194.63,194.59,5.137]
[1738855593768,1.28428289,194.62,194.52,33.50447357]
[1738855594064,2.0578,194.63,194.52,33.50447357]
[1738855594065,0.03725218,194.63,194.62,5.1364]
[1738855594264,3.3185,194.69,194.58,33.50447357]
[1738855594474,0.03311804,194.64,194.62,33.50447357]
[1738855594675,0.03311804,194.64,194.63,5.1359]
[1738855594866,1.804e-05,194.64,194.63,5.1359]
[1738855597070,1.804e-05,194.64,194.62,5.1362]
[1738855597470,1.804e-05,194.64,194.61,0.0356182]
[1738855597668,1.804e-05,194.64,194.63,5.1361]
[1738855599971,1.804e-05,194.64,194.62,5.1363]
[1738855600167,1.804e-05,194.64,194.61,0.0356182]
[1738855600168,5.13611804,194.64,194.61,0.0356182]
[1738855600470,1.804e-05,194.64,194.61,0.0356182]
[1738855601472,1.804e-05,194.64,194.63,33.50447357]
[1738855601865,1.28385291,194.74,194.63,33.50447357]
[1738855602066,33.50447357,194.84,194.68,33.50447357]
[1738855602264,8.32447827,194.83,194.69,5.1345]
[1738855602465,5.1334,194.74,194.65,33.50447357]
[1738855602671,7.041,194.83,194.65,33.50447357]
[1738855602875,5.1316,194.8,194.71,33.50447357]
[1738855603071,0.03639094,194.76,194.74,33.50447357]
[1738855603272,9.094e-05,194.76,194.75,5.1329]
[1738855603470,1.28319085,194.82,194.74,33.50447357]
[1738855603669,20.66465093,194.87,194.74,33.50447357]
[1738855603866,1.28309096,194.86,194.79,5.1316]
[1738855604065,1.28309096,194.86,194.74,33.50447357]
[1738855604576,0.03738377,194.82,194.79,5.1317]
[1738855604875,0.03738377,194.82,194.78,0.03471831]
[1738855605368,5.1317,194.8,194.78,0.03471831]
[1738855605576,0.03738377,194.82,194.67,33.50447357]
[1738855605773,5.1326,194.77,194.67,33.50447357]
[1738855605974,37.96447357,194.84,194.7,5.1343]
[1738855606176,37.96447357,194.84,194.64,33.50447357]
[1738855606177,33.50447357,194.81,194.64,33.50447357]
[1738855606475,33.50447357,194.81,194.67,5.135]
[1738855606675,33.50447357,194.78,194.62,2.899]
[1738855606976,0.03839423,194.74,194.71,0.03863049]
[1738855607172,0.03839423,194.74,194.61,40.52756019]
[1738855607569,1.2837141,194.73,194.65,33.50447357]
[1738855607768,1.2837141,194.73,194.67,5.1349]
[1738855607976,5.4068,194.77,194.65,33.50447357]
[1738855608477,0.03942516,194.73,194.69,0.03362198]
[1738855608774,0.03942516,194.73,194.61,33.50447357]
[1738855608968,5.135,194.68,194.58,33.50447357]
[1738855609173,33.50447357,194.76,194.58,33.50447357]
[1738855609381,1.28394219,194.75,194.58,33.50447357]
[1738855609877,5.1343,194.7,194.64,5.1358]
[1738855610076,0.03323609,194.68,194.65,0.0345223]
[1738855610375,5.1337,194.72,194.65,0.0345223]
[1738855610571,0.03924239,194.68,194.65,0.0345223]
[1738855610778,33.50447357,194.76,194.65,0.0345223]
[1738855610979,0.0333699,194.68,194.65,0.0345223]
[1738855611177,1.28397069,194.75,194.65,0.0345223]
[1738855611475,0.0366931,194.68,194.65,0.0345223]
[1738855611777,5.1346,194.69,194.65,0.0345223]
[1738855611979,0.03627178,194.72,194.65,0.0345223]
[1738855612781,0.03627178,194.72,194.55,33.50447357]
[1738855612982,1.28403992,194.72,194.55,33.50447357]
[1738855613281,33.50447357,194.7,194.52,40.06057357]
[1738855613478,5.72403992,194.69,194.52,38.32967357]
[1738855613680,33.50447357,194.67,194.49,33.50447357]
[1738855613881,33.50447357,194.64,194.49,33.50447357]
[1738855614181,6.61873992,194.66,194.56,0.03315029]
[1738855614182,0.03946837,194.6,194.56,0.03315029]
[1738855614477,1.28403992,194.59,194.49,33.50447357]
[1738855614686,0.03946837,194.6,194.53,33.50447357]
[1738855614883,5.3347,194.66,194.49,33.50447357]
[1738855615183,5.3347,194.66,194.45,7.02308662]
[1738855615184,1.2845317,194.65,194.53,33.50447357]
[1738855615377,1.28455558,194.64,194.56,33.50447357]
[1738855615684,4.46,194.76,194.6,33.50447357]
[1738855615883,5.2313,194.72,194.6,33.50447357]
[1738855616085,1.28425827,194.71,194.57,33.50447357]
[1738855616885,0.03945193,194.66,194.62,0.03574919]
[1738855617581,5.1361,194.63,194.62,0.03574919]
[1738855618176,0.03945193,194.66,194.62,0.03574919]
[1738855619183,1.28425353,194.65,194.62,0.03574919]
[1738855619380,0.03945193,194.66,194.62,0.03574919]
[1738855619581,5.1361,194.63,194.62,0.03574919]
[1738855619883,0.03945193,194.66,194.62,0.03574919]
[1738855620179,0.03945193,194.66,194.65,5.1356]
[1738855620379,5.3313,194.78,194.66,33.50447357]
[1738855620581,1.28381665,194.77,194.66,33.50447357]
[1738855620782,1.28381665,194.76,194.66,33.50447357]
[1738855620982,1.28381665,194.75,194.59,33.50447357]
[1738855621183,1.28381665,194.74,194.63,33.50447357]
[1738855621384,1.28381665,194.73,194.63,33.50447357]
[1738855621585,0.03359083,194.69,194.67,33.50447357]
[1738855621985,1.28358196,194.77,194.57,2.8988]
[1738855621986,1.28358196,194.77,194.64,33.50447357]
[1738855622187,0.03775323,194.7,194.66,0.03329666]
[1738855622382,5.1348,194.68,194.66,0.03329666]
[1738855622583,5.1348,194.68,194.64,5.1357]
[1738855622779,0.03680039,194.69,194.65,0.03358665]
[1738855622985,0.03680039,194.69,194.64,33.50447357]
[1738855623184,0.03869235,194.69,194.68,33.50447357]
[1738855623384,5.3313,194.78,194.68,33.50447357]
[1738855623385,1.9622,194.81,194.68,33.50447357]
[1738855623587,5.2441,194.84,194.72,33.50447357]
[1738855623783,1.2831463,194.83,194.76,33.50447357]
[1738855623986,2.0183,194.88,194.79,33.50447357]
[1738855624182,1.28304727,194.87,194.79,33.50447357]
[1738855624692,0.03629524,194.85,194.81,0.03910344]
[1738855625788,0.03629524,194.85,194.81,5.17020344]
[1738855625988,0.03629524,194.85,194.81,0.03910344]
[1738855627492,1.28300103,194.84,194.81,0.03910344]
[1738855628091,5.1311,194.82,194.81,0.03910344]
[1738855628286,1.28300103,194.82,194.71,2.8993]
[1738855628595,1.28300103,194.81,194.67,33.50447357]
[1738855628895,1.28300103,194.8,194.66,3.7249]
[1738855629095,1.28300103,194.79,194.66,1.9248]
[1738855629295,1.28300103,194.78,194.64,36.40247357]
[1738855629599,0.0391129,194.74,194.71,0.03785643]
[1738855629798,1.28300103,194.73,194.61,33.50447357]
[1738855630000,1.28300103,194.73,194.7,5.134]
[1738855630300,5.3034,194.81,194.67,33.50447357]
[1738855630497,1.28347234,194.8,194.7,33.50447357]
[1738855630699,1.28347234,194.8,194.73,33.50447357]
[1738855631008,0.03236654,194.77,194.73,33.53852541]
[1738855631190,0.03236654,194.77,194.76,5.1327]
[1738855631396,3.281,194.88,194.76,33.50447357]
[1738855631597,1.28293325,194.87,194.8,5.1315]
[1738855631793,1.28293325,194.86,194.74,1.9717]
[1738855631994,1.28293325,194.85,194.74,1.9717]
[1738855632192,3.281,194.88,194.74,1.9717]
[1738855632193,1.28293325,194.84,194.74,1.9717]
[1738855632400,3.281,194.88,194.74,1.9717]
[1738855632601,0.03744539,194.81,194.77,0.03516008]
[1738855632900,1.28318356,194.8,194.77,0.03516008]
[1738855633297,5.1321,194.78,194.77,0.03516008]
[1738855633494,1.28318356,194.78,194.63,37.31917357]
[1738855633800,5.1332,194.74,194.63,37.31917357]
[1738855633999,3.281,194.77,194.63,37.31917357]
[1738855634198,33.50447357,194.88,194.67,33.50447357]
[1738855634199,1.2834148,194.76,194.67,33.50447357]
[1738855634402,3.2483,194.87,194.71,33.50447357]
[1738855634603,1.28329331,194.86,194.71,33.50447357]
[1738855634804,7.329e-05,194.73,194.71,33.50447357]
[1738855634999,5.1313,194.82,194.71,33.50447357]
[1738855635303,1.28329331,194.81,194.75,33.50447357]
[1738855635500,5.1303,194.86,194.75,33.50447357]
[1738855635701,1.28304528,194.85,194.78,33.50447357]
[1738855635900,0.03737799,194.82,194.79,0.03854329]
[1738855636098,0.03737799,194.82,194.8,5.1316]
[1738855636301,3.2483,194.91,194.8,5.1316]
[1738855636608,1.28293351,194.9,194.75,33.50447357]
[1738855636799,0.03686313,194.87,194.84,0.03627842]
[1738855637000,1.28293351,194.86,194.73,1.9717]
[1738855637197,5.1319,194.79,194.72,1.8781]
[1738855637703,1.28334042,194.78,194.72,5.1335]
[1738855637899,33.50447357,194.83,194.65,1.9732]
[1738855638202,0.0341114,194.76,194.72,0.03797648]
[1738855638708,0.0341114,194.76,194.75,5.1329]
[1738855638902,0.0341114,194.76,194.72,0.03797648]
[1738855639105,1.28331517,194.75,194.72,0.03797648]
[1738855639309,5.1670114,194.76,194.72,0.03797648]
[1738855639604,1.28341582,194.75,194.72,0.03797648]
[1738855639810,1.28341582,194.74,194.72,0.03797648]
[1738855640002,5.1345,194.69,194.59,9.01325776]
[1738855640206,33.50447357,194.75,194.59,9.01325776]
[1738855640408,1.28390389,194.74,194.59,9.01325776]
[1738855640605,5.1351,194.67,194.62,5.1363]
[1738855640811,33.50447357,194.75,194.59,9.01325776]
[1738855641007,1.28400749,194.74,194.59,9.01325776]
[1738855641207,0.03787473,194.69,194.65,0.03519995]
[1738855641408,1.28400749,194.68,194.65,0.03519995]
[1738855641608,5.1351,194.67,194.65,0.03519995]
[1738855641810,0.03787473,194.69,194.65,0.03519995]
[1738855642011,1.28410648,194.68,194.65,0.03519995]
[1738855642311,1.28412229,194.67,194.65,0.03519995]
[1738855642504,0.03787473,194.69,194.65,0.03519995]
[1738855643011,1.2838857,194.68,194.65,0.03519995]
[1738855643208,1.2838857,194.67,194.65,0.03519995]
[1738855643412,0.03787473,194.69,194.65,0.03519995]
[1738855643602,1.284059,194.68,194.65,0.03519995]
[1738855644803,5.1353,194.66,194.65,0.03519995]
[1738855645108,0.03787473,194.69,194.65,0.03519995]
[1738855645812,0.03787473,194.69,194.68,5.1348]
[1738855646606,3.9811,194.79,194.73,5.1334]
[1738855646811,1.28354013,194.78,194.72,33.50447357]
[1738855647007,5.1311,194.83,194.72,33.50447357]
[1738855647213,1.28318923,194.82,194.78,5.1321]
[1738855647511,5.1332,194.75,194.66,2.0093]
[1738855648106,38.87827357,194.86,194.74,5.1331]
[1738855648312,0.03511605,194.72,194.69,0.03344351]
[1738855648511,1.28333178,194.84,194.68,33.50447357]
[1738855648709,5.1321,194.79,194.73,5.1334]
[1738855649213,5.3738,194.86,194.74,33.50447357]
[1738855649408,1.28308544,194.85,194.74,33.50447357]
[1738855649607,0.03596941,194.82,194.78,0.03696606]
[1738855649912,0.03596941,194.82,194.66,2.0093]
[1738855649913,33.50447357,194.79,194.66,2.0093]
[1738855650208,5.1333,194.74,194.7,5.1342]
[1738855650414,33.50447357,194.79,194.66,2.0093]
[1738855650610,1.2836645,194.78,194.62,33.50447357]
[1738855650810,33.50447357,194.79,194.66,5.1351]
[1738855650811,1.2836645,194.77,194.66,5.1351]
[1738855651013,1.2836645,194.76,194.62,33.50447357]
[1738855651208,0.03368187,194.73,194.7,0.03365303]
[1738855651512,33.50447357,194.85,194.68,33.50447357]
[1738855651714,1.28335041,194.84,194.68,33.50447357]
[1738855652014,0.03717433,194.73,194.7,0.03484773]
[1738855652318,5.1334,194.74,194.69,5.1343]
[1738855652514,0.03283837,194.73,194.7,0.03561725]
[1738855652910,5.1324,194.77,194.73,5.1334]
[1738855653214,0.03719332,194.73,194.7,0.03394415]
[1738855653412,33.50447357,194.79,194.63,2.9003]
[1738855653615,0.03779283,194.73,194.6,28.35143106]
[1738855653813,0.03779283,194.73,194.7,0.03843251]
[1738855653814,1.28361102,194.72,194.7,0.03843251]
[1738855654112,1.28361102,194.72,194.69,0.03247563]
[1738855654308,1.28361102,194.71,194.6,28.35143106]
[1738855654513,1.28361102,194.7,194.6,28.35143106]
[1738855654707,0.0370873,194.68,194.64,0.03274456]
[1738855654910,5.1720873,194.68,194.64,0.03274456]
[1738855655211,0.0370873,194.68,194.64,0.03274456]
[1738855656406,0.0370873,194.68,194.65,33.50447357]
[1738855656604,3.0705,194.75,194.65,33.50447357]
[1738855656807,4.0254,194.81,194.68,33.50447357]
[1738855657010,1.2835434,194.8,194.68,33.50447357]
[1738855657214,1.2835434,194.79,194.68,33.50447357]
[1738855657411,1.2835434,194.78,194.68,33.50447357]
[1738855657611,1.28335362,194.77,194.65,35.42047357]
[1738855657815,0.03406631,194.75,194.71,0.03541205]
[1738855658117,0.03406631,194.75,194.72,5.1335]
[1738855658614,0.03406631,194.75,194.71,0.03541205]
[1738855659614,5.16706631,194.75,194.71,0.03541205]
[1738855659816,1.28356706,194.74,194.71,0.03541205]
[1738855660012,0.03406631,194.75,194.71,0.03541205]
[1738855660518,1.28351364,194.74,194.71,0.03541205]
[1738855660818,1.28351364,194.73,194.71,0.03541205]
[1738855661513,5.1333,194.74,194.71,0.03541205]
[1738855661714,0.03406631,194.75,194.71,0.03541205]
[1738855662812,0.03406631,194.75,194.72,5.1337]
[1738855663009,0.03406631,194.75,194.71,0.03541205]
[1738855663422,1.28329479,194.74,194.71,0.03541205]
[1738855663619,1.28329479,194.73,194.71,0.03541205]
[1738855663919,0.03406631,194.75,194.71,0.03541205]
[1738855664114,1.28355554,194.74,194.71,0.03541205]
[1738855664314,1.28355554,194.73,194.71,0.03541205]
[1738855664515,1.28355554,194.72,194.71,0.03541205]
[1738855665012,6.41725554,194.72,194.71,0.03541205]
[1738855665412,1.28355554,194.72,194.61,7.08785776]
[1738855665611,5.1359,194.64,194.61,7.08785776]
[1738855665812,1.9331,194.71,194.61,7.08785776]
[1738855666023,5.1363,194.63,194.61,7.08785776]
[1738855666313,33.50447357,194.69,194.61,7.08785776]
[1738855666521,5.1364,194.62,194.6,21.30141754]
[1738855666717,1.28427493,194.61,194.6,21.30141754]
[1738855666918,1.28427493,194.61,194.6,14.96281754]
[1738855667118,6.42087493,194.61,194.6,14.96281754]
[1738855667419,1.28427493,194.61,194.6,14.96281754]
[1738855667616,0.03438198,194.64,194.6,5.17474424]
[1738855667816,0.03438198,194.64,194.6,0.03784424]
[1738855668422,0.03438198,194.64,194.61,5.1364]
[1738855670117,0.03438198,194.64,194.6,0.03784424]
[1738855670324,0.03438198,194.64,194.61,33.50447357]
[1738855670523,1.28400588,194.69,194.61,33.50447357]
[1738855670722,2.0302,194.81,194.67,33.50447357]
[1738855670929,1.28373354,194.8,194.7,33.50447357]
[1738855671118,1.28373354,194.79,194.76,5.1326]
[1738855671320,1.28373354,194.78,194.73,33.50447357]
[1738855671520,28.00592295,194.82,194.7,33.50447357]
[1738855671722,0.03434091,194.77,194.74,0.03824308]
[1738855671921,0.03434091,194.77,194.75,5.1329]
[1738855672125,0.03434091,194.77,194.74,0.03824308]
[1738855672821,5.1329,194.75,194.74,0.03824308]
[1738855673124,1.28312303,194.75,194.68,2.0388]
[1738855673325,1.28312303,194.74,194.68,2.0388]
[1738855673622,1.28312303,194.73,194.68,2.0388]
[1738855673824,33.50447357,194.81,194.7,5.1342]
[1738855674019,1.28353293,194.8,194.68,2.0388]
[1738855674232,0.03523353,194.77,194.74,0.03694486]
[1738855674524,1.28353293,194.76,194.74,0.03694486]
[1738855674727,1.28353293,194.75,194.74,0.03694486]
[1738855674924,0.03812042,194.77,194.75,5.1329]
[1738855675122,0.03507981,194.76,194.75,5.1329]
[1738855675323,1.28321424,194.84,194.73,33.50447357]
[1738855675524,1.28321424,194.83,194.78,5.1321]
[1738855675821,0.0387402,194.8,194.74,2.0498]
[1738855676014,1.28321424,194.79,194.78,5.1322]
[1738855676624,0.0387402,194.8,194.75,0.0324739]
[1738855676819,1.28307232,194.79,194.75,0.0324739]
[1738855677020,0.0387402,194.8,194.77,5.1324]
[1738855677217,0.0387402,194.8,194.75,0.0324739]
[1738855677422,1.28312903,194.79,194.75,0.0324739]
[1738855677626,1.28312903,194.78,194.75,0.0324739]
[1738855677825,0.0387402,194.8,194.75,0.0324739]
[1738855678022,1.28314641,194.79,194.75,0.0324739]
[1738855678227,1.28314641,194.78,194.75,0.0324739]
[1738855678530,1.28324828,194.77,194.75,0.0324739]
[1738855678729,1.28337306,194.76,194.75,0.0324739]
[1738855678934,5.1324,194.77,194.75,0.0324739]
[1738855679120,1.28328254,194.76,194.75,0.0324739]
[1738855679826,1.28328254,194.79,194.75,0.0324739]
[1738855680030,1.28328254,194.78,194.75,0.0324739]
[1738855680331,1.28328254,194.77,194.75,0.0324739]
[1738855680632,1.28328254,194.77,194.62,4.38]
[1738855680633,1.28331019,194.76,194.67,5.135]
[1738855680928,33.50447357,194.72,194.57,56.70286215]
[1738855681132,1.28331019,194.71,194.57,58.61876215]
[1738855681322,5.1356,194.66,194.6,5.1369]
[1738855681528,1.28331019,194.65,194.57,58.61876215]
[1738855681729,1.28331019,194.64,194.57,56.70286215]
[1738855681929,5.1373,194.59,194.57,56.70286215]
[1738855682128,0.03334724,194.63,194.59,0.03632605]
[1738855682424,1.28448295,194.62,194.59,0.03632605]
[1738855682626,1.28448295,194.61,194.59,0.03632605]
[1738855682826,0.03334724,194.63,194.59,0.03632605]
[1738855683026,0.03334724,194.63,194.59,5.17352605]
[1738855683232,0.03334724,194.63,194.59,0.03632605]
[1738855683432,1.28428523,194.62,194.59,0.03632605]
[1738855683635,6.42068523,194.62,194.59,0.03632605]
[1738855683833,0.03334724,194.63,194.59,0.03632605]
[1738855684334,1.28436692,194.62,194.59,0.03632605]
[1738855684825,5.1369,194.6,194.59,2.605e-05]
[1738855685026,1.28436692,194.6,194.47,92.11383572]
[1738855685226,1.28436692,194.59,194.51,5.139]
[1738855685431,1.28436692,194.58,194.51,5.139]
[1738855685633,1.28436692,194.57,194.51,5.139]
[1738855685835,1.28476682,194.56,194.47,7.0466]
[1738855686030,1.28476682,194.55,194.47,1.9065]
[1738855686231,1.28476682,194.54,194.41,33.50447357]
[1738855686534,1.28476682,194.53,194.42,2.0298]
[1738855686734,1.28476682,194.52,194.42,2.0298]
[1738855686933,5.1396,194.5,194.45,5.1408]
[1738855687137,33.50447357,194.56,194.42,2.0298]
[1738855687434,5.1406,194.47,194.42,2.0298]
[1738855687935,0.03668376,194.46,194.42,2.0298]
[1738855688131,0.03668376,194.46,194.42,7.1714]
[1738855689034,0.03668376,194.46,194.38,33.50447357]
[1738855689235,5.1409,194.45,194.38,33.50447357]
[1738855689435,0.03668376,194.46,194.38,33.50447357]
[1738855689728,0.03668376,194.46,194.37,1.9933]
[1738855690234,0.03668376,194.46,194.38,33.50447357]
[1738855690533,0.03668376,194.46,194.41,33.50447357]
[1738855690941,0.03668376,194.46,194.45,5.1409]
[1738855691140,0.03668376,194.46,194.44,33.50447357]
[1738855691636,3.1747,194.56,194.44,33.50447357]
[1738855692335,5.1389,194.53,194.46,5.1405]
[1738855692537,3.1747,194.56,194.44,33.50447357]
[1738855692941,0.03412939,194.52,194.48,0.03615343]
[1738855693341,0.03412939,194.52,194.37,1.9933]
[1738855693642,3.3434582,194.52,194.37,1.9933]
[1738855693842,1.2850582,194.51,194.37,1.9933]
[1738855694042,2.0584,194.52,194.41,33.50447357]
[1738855694637,0.03382886,194.48,194.44,33.50447357]
[1738855695041,3.1747,194.56,194.44,33.50447357]
[1738855695242,5.139,194.52,194.48,5.14]
[1738855695536,0.03711794,194.52,194.44,33.50447357]
[1738855695740,0.03711794,194.52,194.38,33.50447357]
[1738855695934,34.78966567,194.51,194.35,33.50447357]
[1738855696133,33.50447357,194.54,194.35,33.50447357]
[1738855696334,5.1401,194.48,194.43,5.1412]
[1738855696536,0.03620758,194.45,194.38,33.50447357]
[1738855696742,1.28527961,194.53,194.38,33.50447357]
[1738855697045,5.1398,194.49,194.45,5.1409]
[1738855697243,0.03933656,194.47,194.45,5.1409]
[1738855697438,0.03933656,194.47,194.46,5.1406]
[1738855697941,0.03933656,194.47,194.42,2.0982]
[1738855698134,0.03933656,194.47,194.42,7.2397]
[1738855698135,5.17973656,194.47,194.42,7.2397]
[1738855698342,0.03933656,194.47,194.42,5.1415]
[1738855698545,0.03933656,194.47,194.39,1.9303]
[1738855699342,0.03933656,194.47,194.34,2.0982]
[1738855699840,5.1411,194.44,194.4,5.1422]
[1738855700040,0.03237141,194.42,194.35,33.50447357]
[1738855700245,0.03237141,194.42,194.41,5.1419]
[1738855701140,0.03237141,194.42,194.34,2.0982]
[1738855701541,0.03237141,194.42,194.39,5.1424]
[1738855702245,0.03237141,194.42,194.34,2.0982]
[1738855702439,0.03237141,194.42,194.41,5.1419]
[1738855704038,0.03237141,194.42,194.34,2.0982]
[1738855704540,0.03237141,194.42,194.38,5.1425]
[1738855704741,0.03237141,194.42,194.34,2.0982]
[1738855705343,0.03237141,194.42,194.41,5.1419]
[1738855706542,223.50447357,194.55,194.46,5.1405]
[1738855706845,33.50447357,194.55,194.38,33.50447357]
[1738855707049,5.1396,194.5,194.38,33.50447357]
[1738855707352,3.1747,194.56,194.41,33.50447357]
[1738855707546,5.1385,194.54,194.42,3.2319]
[1738855707848,0.03804136,194.5,194.49,5.1396]
[1738855709648,5.1372,194.59,194.54,5.1382]
[1738855710151,5.1372,194.59,194.47,33.5436079]
[1738855710152,7.2873,194.66,194.47,33.50447357]
[1738855710354,33.50447357,194.63,194.47,33.50447357]
[1738855710554,1.28470069,194.62,194.47,33.50447357]
[1738855710853,33.50447357,194.53,194.27,308.351]
[1738855711152,6.60382173,194.52,194.36,5.2443]
[1738855711355,0.03327651,194.44,194.41,0.03581432]
[1738855711655,5.3185,194.52,194.42,5.1417]
[1738855711858,0.03410516,194.44,194.42,5.1417]
[1738855712058,5.3185,194.52,194.42,5.1417]
[1738855712252,5.3185,194.52,194.45,0.03826133]
[1738855712449,5.17637368,194.49,194.45,0.03826133]
[1738855712656,0.03637368,194.49,194.45,0.03826133]
[1738855713453,0.03637368,194.49,194.48,5.1401]
[1738855715159,0.03637368,194.49,194.45,0.03826133]
[1738855715560,0.03637368,194.49,194.48,5.1401]
[1738855717661,0.03637368,194.49,194.45,3.23476133]
[1738855717662,33.50447357,194.63,194.56,5.1379]
[1738855717862,1.28472466,194.62,194.49,33.50447357]
[1738855718068,5.169,194.65,194.52,33.50447357]
[1738855718268,1.28440745,194.64,194.52,33.50447357]
[1738855718567,54.51539786,194.75,194.58,33.50447357]
[1738855718763,28.01456572,194.72,194.63,5.136]
[1738855718964,5.1346,194.69,194.58,33.50447357]
[1738855719163,5.17405038,194.69,194.58,33.50447357]
[1738855719364,0.03945038,194.69,194.62,0.03457495]
[1738855719765,5.135,194.68,194.62,0.03457495]
[1738855719962,0.03945038,194.69,194.65,5.1355]
[1738855720169,0.03945038,194.69,194.62,0.03457495]
[1738855721871,33.50447357,194.66,194.62,0.03457495]
[1738855722064,33.50447357,194.63,194.52,21.27238532]
[1738855722269,5.1375,194.58,194.53,5.1387]
[1738855722469,5.1375,194.58,194.52,21.27238532]
[1738855722763,5.1385,194.54,194.52,21.27238532]
[1738855723069,190.0,194.69,194.52,21.27238532]
[1738855723269,1.28476292,194.68,194.58,33.50447357]
[1738855723467,1.28476292,194.67,194.58,33.50447357]
[1738855723661,0.03316348,194.65,194.62,33.50447357]
[1738855723972,1.28384258,194.71,194.62,33.50447357]
[1738855724166,0.03313917,194.65,194.64,5.1356]
[1738855724370,0.03313917,194.65,194.58,33.50447357]
[1738855724670,5.1358,194.65,194.63,0.03823531]
[1738855724872,1.28422753,194.64,194.51,33.50447357]
[1738855725062,0.03418719,194.63,194.51,33.50447357]
[1738855725368,33.50447357,194.66,194.51,33.50447357]
[1738855725369,5.1365,194.62,194.57,5.1376]
[1738855725570,1.28446733,194.61,194.51,33.50447357]
[1738855725771,2.0736,194.65,194.51,33.50447357]
[1738855725967,1.284423,194.64,194.55,5.138]
[1738855726171,0.03423822,194.6,194.56,0.03574179]
[1738855726367,0.03423822,194.6,194.56,5.17344179]
[1738855726564,1.31866122,194.6,194.56,5.17344179]
[1738855726963,5.17123822,194.6,194.56,0.03574179]
[1738855727365,0.03423822,194.6,194.56,0.03574179]
[1738855727565,0.03423822,194.6,194.57,5.1376]
[1738855728173,0.03423822,194.6,194.56,0.03574179]
[1738855728370,1.2843675,194.59,194.56,0.03574179]
[1738855728563,5.1377,194.57,194.56,0.03574179]
[1738855728766,6.4220675,194.57,194.56,0.03574179]
[1738855728974,1.2843675,194.57,194.43,33.50447357]
[1738855729168,1.2843675,194.56,194.43,33.50447357]
[1738855729376,1.2843675,194.55,194.43,33.50447357]
[1738855729670,5.1372,194.59,194.54,5.1383]
[1738855729975,1.28465258,194.58,194.54,5.1383]
[1738855730167,0.03403297,194.58,194.51,33.50447357]
[1738855730373,0.03403297,194.58,194.57,5.1376]
[1738855730570,5.4415,194.65,194.52,2.0866]
[1738855730772,0.03842543,194.59,194.58,5.1374]
[1738855731169,5.1363,194.63,194.52,2.0866]
[1738855731373,0.03578775,194.6,194.58,5.1372]
[1738855731874,0.03578775,194.6,194.52,2.0866]
[1738855731875,0.03578775,194.6,194.55,33.50447357]
[1738855732074,0.03578775,194.6,194.59,5.1372]
[1738855732976,5.4395,194.73,194.65,5.1356]
[1738855733174,1.2840541,194.72,194.6,33.50447357]
[1738855733374,5.1345,194.7,194.6,33.50447357]
[1738855733573,1.28388883,194.69,194.6,33.50447357]
[1738855734070,5.135,194.68,194.6,33.50447357]
[1738855734274,5.135,194.68,194.63,0.03433004]
[1738855734275,0.03279087,194.66,194.63,0.03433004]
[1738855734576,0.03279087,194.66,194.63,5.17023004]
[1738855734878,0.03279087,194.66,194.63,0.03433004]
[1738855735378,0.03279087,194.66,194.65,5.1356]
[1738855735876,0.03279087,194.66,194.63,0.03433004]
[1738855736177,0.03279087,194.66,194.63,5.17023004]
[1738855737381,10.2611,194.85,194.63,33.53880361]